[Event "Titled Tuesday Blitz August 09 Early 2022"]
[White "Sztokbant, Bernardo Vainzoff"]
[Black "Bilych, Olexiy"]
[WhiteFideId "2115956"]
[BlackFideId "14156504"]
[WhiteElo "2209"]
[BlackElo "2157"]
[Result "1-0"]
[Round "03"]
[TimeControl "180+1"]
[Date "2022.08.09"]
[WhiteClock "0:00:06"]
[BlackClock "0:00:04"]

1. e4 {[%clk 0:03:00]}  e5 {[%clk 0:02:58]} 2. Nf3 {[%clk 0:03:01]}  Nc6 {[%clk 0:02:58]} 3. Bc4 {[%clk 0:03:02]}  Bc5 {[%clk 0:02:58]} 4. O-O {[%clk 0:03:02]}  Nf6 {[%clk 0:02:59]} 5. Re1 {[%clk 0:02:57]}  O-O {[%clk 0:02:58]} 6. c3 {[%clk 0:02:56]}  d6 {[%clk 0:02:56]} 7. a4 {[%clk 0:02:54]}  a5 {[%clk 0:02:53]} 8. d3 {[%clk 0:02:51]}  h6 {[%clk 0:02:50]} 9. Nbd2 {[%clk 0:02:51]}  Be6 {[%clk 0:02:50]} 10. Qb3 {[%clk 0:02:48]}  Qd7 {[%clk 0:02:34]} 11. Nf1 {[%clk 0:02:43]}  Rfe8 {[%clk 0:02:19]} 12. Be3 {[%clk 0:02:40]}  Bxe3 {[%clk 0:01:32]} 13. Nxe3 {[%clk 0:02:39]}  Bxc4 {[%clk 0:01:32]} 14. Qxc4 {[%clk 0:02:40]}  Ne7 {[%clk 0:01:29]} 15. Nh4 {[%clk 0:02:22]}  c6 {[%clk 0:01:25]} 16. Qb3 {[%clk 0:02:15]}  d5 {[%clk 0:01:07]} 17. exd5 {[%clk 0:02:09]}  cxd5 {[%clk 0:01:06]} 18. Nf3 {[%clk 0:02:09]}  Nc6 {[%clk 0:01:05]} 19. Qb5 {[%clk 0:01:55]}  Re6 {[%clk 0:01:01]} 20. Ra3 {[%clk 0:01:38]}  Rd8 {[%clk 0:00:55]} 21. Rb3 {[%clk 0:01:34]}  Re7 {[%clk 0:00:56]} 22. Qc5 {[%clk 0:01:25]}  g6 {[%clk 0:00:54]} 23. h3 {[%clk 0:01:11]}  Kg7 {[%clk 0:00:54]} 24. Rb5 {[%clk 0:01:07]}  Qd6 {[%clk 0:00:50]} 25. Qxd6 {[%clk 0:01:02]}  Rxd6 {[%clk 0:00:51]} 26. Nc2 {[%clk 0:00:51]}  Rde6 {[%clk 0:00:50]} 27. Kf1 {[%clk 0:00:50]}  Rd7 {[%clk 0:00:44]} 28. Rb6 {[%clk 0:00:40]}  Kf8 {[%clk 0:00:32]} 29. Nxe5 {[%clk 0:00:32]}  Rxe5 {[%clk 0:00:30]} 30. Rxe5 {[%clk 0:00:30]}  Nxe5 {[%clk 0:00:30]} 31. Rxf6 {[%clk 0:00:31]}  Nxd3 {[%clk 0:00:30]} 32. Rb6 {[%clk 0:00:31]}  Ke7 {[%clk 0:00:15]} 33. Ke2 {[%clk 0:00:27]}  Ne5 {[%clk 0:00:13]} 34. Nd4 {[%clk 0:00:22]}  Nc4 {[%clk 0:00:11]} 35. Rb5 {[%clk 0:00:22]}  Kd6 {[%clk 0:00:09]} 36. b3 {[%clk 0:00:22]}  Re7+ {[%clk 0:00:07]} 37. Kf3 {[%clk 0:00:19]}  Nd2+ {[%clk 0:00:07]} 38. Kg3 {[%clk 0:00:19]}  Ne4+ {[%clk 0:00:06]} 39. Kf3 {[%clk 0:00:19]}  Nxc3 {[%clk 0:00:05]} 40. Rxa5 {[%clk 0:00:19]}  b6 {[%clk 0:00:05]} 41. Ra6 {[%clk 0:00:18]}  Kc5 {[%clk 0:00:05]} 42. Nc2 {[%clk 0:00:13]}  Re2 {[%clk 0:00:04]} 43. b4+ {[%clk 0:00:10]}  Kc4 {[%clk 0:00:04]} 44. Ne3+ {[%clk 0:00:10]}  Kb3 {[%clk 0:00:03]} 45. Rxb6 {[%clk 0:00:08]}  d4 {[%clk 0:00:03]} 46. Nd5 {[%clk 0:00:06]}  Nxd5 {[%clk 0:00:02]} 47. Kxe2 {[%clk 0:00:04]}  Nxb6 {[%clk 0:00:02]} 48. a5 {[%clk 0:00:05]}  Nc8 {[%clk 0:00:02]} 49. Kd3 {[%clk 0:00:05]}  Kxb4 {[%clk 0:00:02]} 50. a6 {[%clk 0:00:06]}  Kb5 {[%clk 0:00:03]} 51. Kxd4 {[%clk 0:00:06]}  Na7 {[%clk 0:00:03]} 52. Ke5 {[%clk 0:00:06]}  Nc6+ {[%clk 0:00:03]} 53. Kf6 {[%clk 0:00:07]}  Nd8 {[%clk 0:00:04]} 54. a7 {[%clk 0:00:06]} 1-0


[Site "https://www.chess.com"]

[Event "Titled Tuesday Blitz August 09 Early 2022"]
[White "Taboas Rodriguez, Daniel"]
[Black "Sailer, Mike"]
[WhiteFideId "2208466"]
[BlackFideId "2012901"]
[WhiteElo "2429"]
[BlackElo "2109"]
[Result "0-1"]
[Round "03"]
[TimeControl "180+1"]
[Date "2022.08.09"]
[WhiteClock "0:00:15"]
[BlackClock "0:00:09"]

1. d4 {[%clk 0:02:59]}  d5 {[%clk 0:02:58]} 2. Nf3 {[%clk 0:03:00]}  Bf5 {[%clk 0:02:58]} 3. c4 {[%clk 0:03:00]}  e6 {[%clk 0:02:58]} 4. Nc3 {[%clk 0:03:00]}  Nc6 {[%clk 0:02:59]} 5. Bf4 {[%clk 0:02:58]}  Bb4 {[%clk 0:02:57]} 6. e3 {[%clk 0:02:58]}  Nf6 {[%clk 0:02:56]} 7. a3 {[%clk 0:02:55]}  Bxc3+ {[%clk 0:02:56]} 8. bxc3 {[%clk 0:02:56]}  Ne4 {[%clk 0:02:56]} 9. Qc1 {[%clk 0:02:52]}  Na5 {[%clk 0:02:50]} 10. Qb2 {[%clk 0:02:40]}  dxc4 {[%clk 0:02:44]} 11. Ne5 {[%clk 0:02:32]}  Nb3 {[%clk 0:02:33]} 12. Rd1 {[%clk 0:02:30]}  b5 {[%clk 0:02:30]} 13. f3 {[%clk 0:02:23]}  Nd6 {[%clk 0:02:13]} 14. e4 {[%clk 0:02:23]}  Bg6 {[%clk 0:02:12]} 15. a4 {[%clk 0:02:21]}  a6 {[%clk 0:02:09]} 16. Be2 {[%clk 0:02:13]}  O-O {[%clk 0:02:09]} 17. O-O {[%clk 0:02:13]}  Qe8 {[%clk 0:01:43]} 18. Bg3 {[%clk 0:01:48]}  f6 {[%clk 0:01:39]} 19. Ng4 {[%clk 0:01:45]}  f5 {[%clk 0:01:23]} 20. exf5 {[%clk 0:01:43]}  exf5 {[%clk 0:01:24]} 21. Ne5 {[%clk 0:01:44]}  f4 {[%clk 0:01:25]} 22. Bh4 {[%clk 0:01:41]}  Nf5 {[%clk 0:01:18]} 23. Bf2 {[%clk 0:01:42]}  Rd8 {[%clk 0:00:52]} 24. Nxc4 {[%clk 0:01:39]}  Nbxd4 {[%clk 0:00:34]} 25. cxd4 {[%clk 0:01:34]}  bxc4 {[%clk 0:00:33]} 26. Bxc4+ {[%clk 0:01:35]}  Kh8 {[%clk 0:00:34]} 27. a5 {[%clk 0:01:21]}  Qc6 {[%clk 0:00:25]} 28. Bd3 {[%clk 0:01:03]}  Ne3 {[%clk 0:00:23]} 29. Bxe3 {[%clk 0:01:02]}  fxe3 {[%clk 0:00:23]} 30. Bxg6 {[%clk 0:01:01]}  Qxg6 {[%clk 0:00:23]} 31. Rde1 {[%clk 0:00:56]}  Rfe8 {[%clk 0:00:23]} 32. Qc3 {[%clk 0:00:50]}  Qe6 {[%clk 0:00:21]} 33. Re2 {[%clk 0:00:47]}  Rd7 {[%clk 0:00:20]} 34. Rfe1 {[%clk 0:00:47]}  Rde7 {[%clk 0:00:19]} 35. Rxe3 {[%clk 0:00:45]}  Qxe3+ {[%clk 0:00:19]} 36. Rxe3 {[%clk 0:00:45]}  Rxe3 {[%clk 0:00:19]} 37. Qxc7 {[%clk 0:00:46]}  h6 {[%clk 0:00:15]} 38. Qc6 {[%clk 0:00:41]}  Rd8 {[%clk 0:00:13]} 39. d5 {[%clk 0:00:34]}  Rd3 {[%clk 0:00:12]} 40. Qxa6 {[%clk 0:00:34]}  R3xd5 {[%clk 0:00:13]} 41. Qb6 {[%clk 0:00:34]}  Ra8 {[%clk 0:00:08]} 42. a6 {[%clk 0:00:33]}  Rd1+ {[%clk 0:00:09]} 43. Kf2 {[%clk 0:00:32]}  Ra1 {[%clk 0:00:09]} 44. h4 {[%clk 0:00:29]}  R1xa6 {[%clk 0:00:09]} 45. Qb7 {[%clk 0:00:29]}  Ra2+ {[%clk 0:00:09]} 46. Kg3 {[%clk 0:00:30]}  R2a7 {[%clk 0:00:10]} 47. Qc6 {[%clk 0:00:29]}  Ra6 {[%clk 0:00:10]} 48. Qe4 {[%clk 0:00:30]}  Ra4 {[%clk 0:00:11]} 49. Qe7 {[%clk 0:00:29]}  R4a7 {[%clk 0:00:10]} 50. Qe6 {[%clk 0:00:20]}  Ra6 {[%clk 0:00:10]} 51. Qh3 {[%clk 0:00:21]}  Ra3 {[%clk 0:00:09]} 52. Qf5 {[%clk 0:00:19]}  R3a5 {[%clk 0:00:10]} 53. Qh3 {[%clk 0:00:19]}  Ra3 {[%clk 0:00:10]} 54. Kh2 {[%clk 0:00:19]}  Ra2 {[%clk 0:00:10]} 55. Qf5 {[%clk 0:00:19]}  R2a5 {[%clk 0:00:11]} 56. Qd3 {[%clk 0:00:18]}  Ra3 {[%clk 0:00:11]} 57. Qd6 {[%clk 0:00:17]}  R3a6 {[%clk 0:00:11]} 58. Qg3 {[%clk 0:00:17]}  Ra3 {[%clk 0:00:11]} 59. Kh3 {[%clk 0:00:18]}  R3a4 {[%clk 0:00:09]} 60. Qh2 {[%clk 0:00:18]}  Ra3 {[%clk 0:00:10]} 61. Qf4 {[%clk 0:00:17]}  R3a4 {[%clk 0:00:10]} 62. Qd2 {[%clk 0:00:17]}  Ra2 {[%clk 0:00:08]} 63. Qd1 {[%clk 0:00:17]}  Ra1 {[%clk 0:00:09]} 64. Qd7 {[%clk 0:00:17]}  R1a7 {[%clk 0:00:09]} 65. Qg4 {[%clk 0:00:17]}  Ra4 {[%clk 0:00:09]} 66. Qg6 {[%clk 0:00:17]}  R4a6 {[%clk 0:00:10]} 67. Qg3 {[%clk 0:00:18]}  Ra3 {[%clk 0:00:10]} 68. Qh2 {[%clk 0:00:18]}  Ra2 {[%clk 0:00:10]} 69. Kg3 {[%clk 0:00:18]}  R2a3 {[%clk 0:00:11]} 70. Qh3 {[%clk 0:00:18]}  Ra2 {[%clk 0:00:11]} 71. Qg4 {[%clk 0:00:18]}  R2a4 {[%clk 0:00:11]} 72. Qg6 {[%clk 0:00:18]}  R4a6 {[%clk 0:00:11]} 73. Qg4 {[%clk 0:00:18]}  Ra4 {[%clk 0:00:11]} 74. f4 {[%clk 0:00:18]}  Ra3+ {[%clk 0:00:11]} 75. Kh2 {[%clk 0:00:18]}  Ra2 {[%clk 0:00:12]} 76. Kh3 {[%clk 0:00:18]}  R2a3+ {[%clk 0:00:11]} 77. g3 {[%clk 0:00:18]}  R3a4 {[%clk 0:00:12]} 78. Qf5 {[%clk 0:00:18]}  R4a5 {[%clk 0:00:12]} 79. Qg6 {[%clk 0:00:18]}  R5a6 {[%clk 0:00:13]} 80. Qh5 {[%clk 0:00:18]}  Ra5 {[%clk 0:00:13]} 81. Qg6 {[%clk 0:00:17]}  R5a6 {[%clk 0:00:13]} 82. Qg4 {[%clk 0:00:17]}  Ra4 {[%clk 0:00:13]} 83. h5 {[%clk 0:00:17]}  R4a5 {[%clk 0:00:13]} 84. Kh4 {[%clk 0:00:17]}  Rb5 {[%clk 0:00:12]} 85. Qd7 {[%clk 0:00:17]}  Rba5 {[%clk 0:00:10]} 86. g4 {[%clk 0:00:16]}  R5a7 {[%clk 0:00:09]} 87. Qe7 {[%clk 0:00:15]}  Rxe7 {[%clk 0:00:09]} 0-1


[Site "https://www.chess.com"]

[Event "Titled Tuesday Blitz August 09 Early 2022"]
[White "Tomb, Maroun"]
[Black "Nazari, Arad"]
[WhiteFideId "5300398"]
[BlackFideId "12577324"]
[WhiteElo "2545"]
[BlackElo "2129"]
[Result "0-1"]
[Round "03"]
[TimeControl "180+1"]
[Date "2022.08.09"]
[WhiteClock "0:00:29"]
[BlackClock "0:00:27"]

1. e4 {[%clk 0:03:00]}  c5 {[%clk 0:02:58]} 2. Ne2 {[%clk 0:02:58]}  Nf6 {[%clk 0:02:55]} 3. Nbc3 {[%clk 0:02:58]}  d6 {[%clk 0:02:55]} 4. g3 {[%clk 0:02:55]}  g6 {[%clk 0:02:52]} 5. Bg2 {[%clk 0:02:55]}  Bg7 {[%clk 0:02:52]} 6. d4 {[%clk 0:02:55]}  cxd4 {[%clk 0:02:52]} 7. Nxd4 {[%clk 0:02:56]}  O-O {[%clk 0:02:53]} 8. O-O {[%clk 0:02:56]}  Nc6 {[%clk 0:02:51]} 9. Nde2 {[%clk 0:02:56]}  Bd7 {[%clk 0:02:48]} 10. a4 {[%clk 0:02:56]}  Rc8 {[%clk 0:02:48]} 11. h3 {[%clk 0:02:56]}  a6 {[%clk 0:02:48]} 12. Nd5 {[%clk 0:02:53]}  Ne5 {[%clk 0:02:40]} 13. Ra2 {[%clk 0:02:49]}  Bc6 {[%clk 0:02:34]} 14. b3 {[%clk 0:02:48]}  b5 {[%clk 0:02:31]} 15. axb5 {[%clk 0:02:46]}  axb5 {[%clk 0:02:31]} 16. Nd4 {[%clk 0:02:39]}  Ned7 {[%clk 0:02:13]} 17. Nxf6+ {[%clk 0:02:27]}  Bxf6 {[%clk 0:02:01]} 18. Nxc6 {[%clk 0:02:26]}  Rxc6 {[%clk 0:02:02]} 19. e5 {[%clk 0:02:24]}  Nxe5 {[%clk 0:02:02]} 20. Bxc6 {[%clk 0:02:23]}  Nxc6 {[%clk 0:02:03]} 21. Bh6 {[%clk 0:02:13]}  Re8 {[%clk 0:02:00]} 22. Qd2 {[%clk 0:02:11]}  Qc8 {[%clk 0:01:56]} 23. Kh2 {[%clk 0:02:04]}  Nd4 {[%clk 0:01:53]} 24. Qd3 {[%clk 0:01:55]}  Qc6 {[%clk 0:01:46]} 25. f4 {[%clk 0:01:51]}  Rc8 {[%clk 0:01:43]} 26. Rf2 {[%clk 0:01:50]}  Ne6 {[%clk 0:01:37]} 27. f5 {[%clk 0:01:42]}  Nc5 {[%clk 0:01:37]} 28. Qe3 {[%clk 0:01:28]}  Ne4 {[%clk 0:01:35]} 29. fxg6 {[%clk 0:01:17]}  hxg6 {[%clk 0:01:32]} 30. Rg2 {[%clk 0:01:10]}  Nc3 {[%clk 0:01:21]} 31. Ra1 {[%clk 0:01:08]}  Nd5 {[%clk 0:01:19]} 32. Qa7 {[%clk 0:01:01]}  Bxa1 {[%clk 0:01:14]} 33. Qxa1 {[%clk 0:01:02]}  e5 {[%clk 0:01:13]} 34. Qf1 {[%clk 0:01:00]}  Qd7 {[%clk 0:00:55]} 35. Qf3 {[%clk 0:00:57]}  Qe6 {[%clk 0:00:53]} 36. Rd2 {[%clk 0:00:57]}  e4 {[%clk 0:00:51]} 37. Qe2 {[%clk 0:00:48]}  Kh7 {[%clk 0:00:50]} 38. Bg5 {[%clk 0:00:41]}  Rc3 {[%clk 0:00:39]} 39. Qxb5 {[%clk 0:00:40]}  Qe5 {[%clk 0:00:35]} 40. Bf4 {[%clk 0:00:33]}  Nxf4 {[%clk 0:00:34]} 41. Qxe5 {[%clk 0:00:32]}  dxe5 {[%clk 0:00:34]} 42. gxf4 {[%clk 0:00:32]}  exf4 {[%clk 0:00:34]} 43. b4 {[%clk 0:00:30]}  f5 {[%clk 0:00:31]} 44. b5 {[%clk 0:00:30]}  e3 {[%clk 0:00:27]} 45. b6 {[%clk 0:00:28]}  exd2 {[%clk 0:00:26]} 46. b7 {[%clk 0:00:28]}  d1=Q {[%clk 0:00:26]} 47. b8=Q {[%clk 0:00:29]}  Rxc2# {[%clk 0:00:27]} 0-1


[Site "https://www.chess.com"]

[Event "Titled Tuesday Blitz August 09 Early 2022"]
[White "Vagman, Roy"]
[Black "Matveeva, Olga"]
[WhiteFideId "2828995"]
[BlackFideId "24107018"]
[WhiteElo "1956"]
[BlackElo "2052"]
[Result "1-0"]
[Round "03"]
[TimeControl "180+1"]
[Date "2022.08.09"]
[WhiteClock "0:00:10"]
[BlackClock "0:00:04"]

1. Nf3 {[%clk 0:02:57]}  Nf6 {[%clk 0:02:58]} 2. g3 {[%clk 0:02:55]}  e6 {[%clk 0:02:58]} 3. Bg2 {[%clk 0:02:54]}  d5 {[%clk 0:02:58]} 4. O-O {[%clk 0:02:38]}  Be7 {[%clk 0:02:57]} 5. d3 {[%clk 0:02:37]}  O-O {[%clk 0:02:56]} 6. Nc3 {[%clk 0:02:37]}  c5 {[%clk 0:02:56]} 7. e4 {[%clk 0:02:37]}  Nc6 {[%clk 0:02:53]} 8. e5 {[%clk 0:02:22]}  Nd7 {[%clk 0:02:51]} 9. Qe2 {[%clk 0:02:22]}  a6 {[%clk 0:02:47]} 10. h4 {[%clk 0:02:14]}  b5 {[%clk 0:02:46]} 11. Bf4 {[%clk 0:02:14]}  Bb7 {[%clk 0:02:41]} 12. Rad1 {[%clk 0:02:06]}  b4 {[%clk 0:02:40]} 13. Nb1 {[%clk 0:02:06]}  a5 {[%clk 0:02:34]} 14. Nbd2 {[%clk 0:01:59]}  a4 {[%clk 0:02:27]} 15. Nh2 {[%clk 0:01:49]}  Nd4 {[%clk 0:02:19]} 16. Qg4 {[%clk 0:01:40]}  Re8 {[%clk 0:02:12]} 17. c3 {[%clk 0:01:27]}  bxc3 {[%clk 0:02:10]} 18. bxc3 {[%clk 0:01:28]}  Nf5 {[%clk 0:02:09]} 19. Ne4 {[%clk 0:01:16]}  dxe4 {[%clk 0:01:40]} 20. dxe4 {[%clk 0:01:17]}  Nd4 {[%clk 0:01:36]} 21. cxd4 {[%clk 0:01:17]}  cxd4 {[%clk 0:01:35]} 22. Rxd4 {[%clk 0:01:13]}  Qc7 {[%clk 0:01:26]} 23. Rc1 {[%clk 0:00:53]}  Nc5 {[%clk 0:01:24]} 24. h5 {[%clk 0:00:52]}  Red8 {[%clk 0:01:20]} 25. Rdc4 {[%clk 0:00:49]}  Qa5 {[%clk 0:01:10]} 26. Bg5 {[%clk 0:00:40]}  Bf8 {[%clk 0:00:25]} 27. Bxd8 {[%clk 0:00:38]}  Rxd8 {[%clk 0:00:26]} 28. h6 {[%clk 0:00:37]}  g6 {[%clk 0:00:24]} 29. Qf4 {[%clk 0:00:37]}  Nd3 {[%clk 0:00:21]} 30. Qf6 {[%clk 0:00:24]}  Nxc1 {[%clk 0:00:19]} 31. Rxc1 {[%clk 0:00:25]}  Qd2 {[%clk 0:00:17]} 32. Rb1 {[%clk 0:00:20]}  Ba6 {[%clk 0:00:15]} 33. Nf3 {[%clk 0:00:18]}  Qd7 {[%clk 0:00:14]} 34. Ng5 {[%clk 0:00:17]}  Bxh6 {[%clk 0:00:12]} 35. Nxf7 {[%clk 0:00:14]}  Qxf7 {[%clk 0:00:08]} 36. Qxd8+ {[%clk 0:00:14]}  Kg7 {[%clk 0:00:08]} 37. f4 {[%clk 0:00:13]}  Be2 {[%clk 0:00:04]} 38. Rc1 {[%clk 0:00:10]} 1-0


[Site "https://www.chess.com"]

[Event "Titled Tuesday Blitz August 09 Early 2022"]
[White "White, John S."]
[Black "Najdin, Danil"]
[WhiteFideId "2502348"]
[BlackFideId "4172426"]
[WhiteElo "1597"]
[BlackElo "2240"]
[Result "0-1"]
[Round "03"]
[TimeControl "180+1"]
[Date "2022.08.09"]
[WhiteClock "0:00:01"]
[BlackClock "0:00:40"]

1. e4 {[%clk 0:02:57]}  g6 {[%clk 0:02:47]} 2. d4 {[%clk 0:02:55]}  Bg7 {[%clk 0:02:46]} 3. Nf3 {[%clk 0:02:54]}  c6 {[%clk 0:02:46]} 4. c4 {[%clk 0:02:52]}  d5 {[%clk 0:02:44]} 5. Nc3 {[%clk 0:02:51]}  Nf6 {[%clk 0:02:40]} 6. e5 {[%clk 0:02:48]}  Ne4 {[%clk 0:02:37]} 7. c5 {[%clk 0:02:36]}  O-O {[%clk 0:02:29]} 8. Bd3 {[%clk 0:02:32]}  Nxc3 {[%clk 0:02:25]} 9. bxc3 {[%clk 0:02:31]}  f6 {[%clk 0:02:23]} 10. Qe2 {[%clk 0:02:27]}  Bg4 {[%clk 0:02:20]} 11. Qc2 {[%clk 0:01:38]}  Bxf3 {[%clk 0:02:17]} 12. gxf3 {[%clk 0:01:37]}  fxe5 {[%clk 0:02:16]} 13. Be3 {[%clk 0:01:17]}  Rxf3 {[%clk 0:02:11]} 14. h4 {[%clk 0:01:08]}  e4 {[%clk 0:02:02]} 15. Be2 {[%clk 0:01:04]}  Rf5 {[%clk 0:01:42]} 16. O-O-O {[%clk 0:00:59]}  h5 {[%clk 0:01:32]} 17. Rdg1 {[%clk 0:00:50]}  Kh7 {[%clk 0:01:32]} 18. Rg3 {[%clk 0:00:40]}  Nd7 {[%clk 0:01:31]} 19. Rhg1 {[%clk 0:00:38]}  Nf8 {[%clk 0:01:31]} 20. Qd1 {[%clk 0:00:32]}  Bh6 {[%clk 0:01:13]} 21. Bxh6 {[%clk 0:00:28]}  Kxh6 {[%clk 0:01:13]} 22. Qd2+ {[%clk 0:00:25]}  Kh7 {[%clk 0:01:12]} 23. Rg5 {[%clk 0:00:23]}  e6 {[%clk 0:01:07]} 24. Bxh5 {[%clk 0:00:16]}  Rxg5 {[%clk 0:01:07]} 25. Rxg5 {[%clk 0:00:13]}  Qf6 {[%clk 0:00:54]} 26. Bg4 {[%clk 0:00:11]}  b6 {[%clk 0:00:51]} 27. cxb6 {[%clk 0:00:09]}  axb6 {[%clk 0:00:52]} 28. Kb1 {[%clk 0:00:08]}  c5 {[%clk 0:00:52]} 29. dxc5 {[%clk 0:00:06]}  bxc5 {[%clk 0:00:52]} 30. Qe3 {[%clk 0:00:05]}  Rb8+ {[%clk 0:00:44]} 31. Ka1 {[%clk 0:00:05]}  d4 {[%clk 0:00:43]} 32. Qh3 {[%clk 0:00:03]}  dxc3 {[%clk 0:00:40]} 33. Rxc5 {[%clk 0:00:01]}  c2+ {[%clk 0:00:40]} 0-1


[Site "https://www.chess.com"]

[Event "Titled Tuesday Blitz August 09 Early 2022"]
[White "Yedidia, Daniel"]
[Black "Karttunen, Mika"]
[WhiteFideId "30905907"]
[BlackFideId "502081"]
[WhiteElo "2544"]
[BlackElo "2343"]
[Result "0-1"]
[Round "03"]
[TimeControl "180+1"]
[Date "2022.08.09"]
[WhiteClock "0:00:03"]
[BlackClock "0:00:19"]

1. d4 {[%clk 0:02:57]}  Nf6 {[%clk 0:02:59]} 2. c4 {[%clk 0:02:57]}  e6 {[%clk 0:02:59]} 3. Nc3 {[%clk 0:02:58]}  d5 {[%clk 0:03:00]} 4. cxd5 {[%clk 0:02:58]}  exd5 {[%clk 0:02:59]} 5. Bg5 {[%clk 0:02:58]}  Bb4 {[%clk 0:02:58]} 6. e3 {[%clk 0:02:57]}  h6 {[%clk 0:02:54]} 7. Bh4 {[%clk 0:02:54]}  g5 {[%clk 0:02:55]} 8. Bg3 {[%clk 0:02:55]}  Ne4 {[%clk 0:02:55]} 9. Qb3 {[%clk 0:02:54]}  Nc6 {[%clk 0:02:50]} 10. Bb5 {[%clk 0:02:51]}  O-O {[%clk 0:02:23]} 11. Ne2 {[%clk 0:02:45]}  a5 {[%clk 0:02:13]} 12. a3 {[%clk 0:02:39]}  Bxc3+ {[%clk 0:01:53]} 13. Nxc3 {[%clk 0:02:39]}  Be6 {[%clk 0:01:45]} 14. Bxc6 {[%clk 0:02:21]}  bxc6 {[%clk 0:01:44]} 15. Nxe4 {[%clk 0:02:21]}  dxe4 {[%clk 0:01:42]} 16. Qc3 {[%clk 0:02:21]}  Bd5 {[%clk 0:01:33]} 17. h4 {[%clk 0:02:16]}  Kg7 {[%clk 0:01:27]} 18. O-O-O {[%clk 0:01:52]}  Qe7 {[%clk 0:01:20]} 19. Qc5 {[%clk 0:01:47]}  Qd7 {[%clk 0:01:17]} 20. hxg5 {[%clk 0:01:42]}  hxg5 {[%clk 0:01:17]} 21. Rh5 {[%clk 0:01:41]}  f6 {[%clk 0:01:05]} 22. Rdh1 {[%clk 0:01:40]}  Bg8 {[%clk 0:00:45]} 23. Qc2 {[%clk 0:00:50]}  Rfe8 {[%clk 0:00:36]} 24. Qc3 {[%clk 0:00:42]}  Rab8 {[%clk 0:00:32]} 25. Qxa5 {[%clk 0:00:40]}  Rb5 {[%clk 0:00:32]} 26. Qc3 {[%clk 0:00:38]}  Reb8 {[%clk 0:00:28]} 27. Rd1 {[%clk 0:00:24]}  Rxb2 {[%clk 0:00:27]} 28. Qxb2 {[%clk 0:00:24]}  Rxb2 {[%clk 0:00:27]} 29. Kxb2 {[%clk 0:00:25]}  Qf7 {[%clk 0:00:26]} 30. Rhh1 {[%clk 0:00:12]}  Qa2+ {[%clk 0:00:26]} 31. Kc3 {[%clk 0:00:07]}  Qxa3+ {[%clk 0:00:26]} 32. Kd2 {[%clk 0:00:06]}  Qb2+ {[%clk 0:00:26]} 33. Ke1 {[%clk 0:00:04]}  Bc4 {[%clk 0:00:27]} 34. Rd2 {[%clk 0:00:02]}  Qc1+ {[%clk 0:00:27]} 35. Rd1 {[%clk 0:00:03]}  Qc3+ {[%clk 0:00:28]} 36. Rd2 {[%clk 0:00:04]}  Bb3 {[%clk 0:00:25]} 37. Ke2 {[%clk 0:00:03]}  Bc4+ {[%clk 0:00:25]} 38. Ke1 {[%clk 0:00:04]}  Bd3 {[%clk 0:00:25]} 39. Bxc7 {[%clk 0:00:03]}  Qb4 {[%clk 0:00:21]} 40. f3 {[%clk 0:00:03]}  Qb1+ {[%clk 0:00:19]} 41. Rd1 {[%clk 0:00:03]}  Qc2 {[%clk 0:00:19]} 42. Rd2 {[%clk 0:00:03]}  Qc1+ {[%clk 0:00:19]} 43. Rd1 {[%clk 0:00:03]}  Qxe3# {[%clk 0:00:19]} 0-1


[Site "https://www.chess.com"]

[Event "Titled Tuesday Blitz August 09 Early 2022"]
[White "Yirik, Volkan"]
[Black "Gil Alba, Hector Luis"]
[WhiteFideId "6300782"]
[BlackFideId "3504670"]
[WhiteElo "2313"]
[BlackElo "2331"]
[Result "0-1"]
[Round "03"]
[TimeControl "180+1"]
[Date "2022.08.09"]
[WhiteClock "0:01:20"]
[BlackClock "0:00:48"]

1. e4 {[%clk 0:02:56]}  e5 {[%clk 0:02:57]} 2. Nc3 {[%clk 0:02:57]}  Nc6 {[%clk 0:02:55]} 3. Nf3 {[%clk 0:02:58]}  Nf6 {[%clk 0:02:55]} 4. d4 {[%clk 0:02:58]}  exd4 {[%clk 0:02:54]} 5. Nd5 {[%clk 0:02:58]}  Be7 {[%clk 0:02:50]} 6. Bc4 {[%clk 0:02:54]}  d6 {[%clk 0:02:47]} 7. O-O {[%clk 0:02:48]}  O-O {[%clk 0:02:46]} 8. Nxd4 {[%clk 0:02:48]}  Nxd5 {[%clk 0:02:31]} 9. Bxd5 {[%clk 0:02:47]}  Nxd4 {[%clk 0:02:29]} 10. Qxd4 {[%clk 0:02:48]}  c6 {[%clk 0:02:29]} 11. Bb3 {[%clk 0:02:48]}  Bf6 {[%clk 0:02:28]} 12. Qd3 {[%clk 0:02:47]}  Qe7 {[%clk 0:02:27]} 13. c3 {[%clk 0:02:47]}  Re8 {[%clk 0:02:24]} 14. Bf4 {[%clk 0:02:44]}  Be5 {[%clk 0:02:20]} 15. Bxe5 {[%clk 0:02:43]}  dxe5 {[%clk 0:02:19]} 16. f4 {[%clk 0:02:40]}  exf4 {[%clk 0:02:18]} 17. Rxf4 {[%clk 0:02:41]}  Be6 {[%clk 0:02:18]} 18. Bxe6 {[%clk 0:02:37]}  Qxe6 {[%clk 0:02:15]} 19. Raf1 {[%clk 0:02:35]}  f6 {[%clk 0:02:11]} 20. b3 {[%clk 0:02:34]}  Rad8 {[%clk 0:02:08]} 21. Qf3 {[%clk 0:02:34]}  Rd2 {[%clk 0:02:01]} 22. Rf2 {[%clk 0:02:34]}  Red8 {[%clk 0:01:55]} 23. h3 {[%clk 0:02:32]}  Rd1+ {[%clk 0:01:52]} 24. Kh2 {[%clk 0:02:32]}  Qe5 {[%clk 0:01:52]} 25. Qg3 {[%clk 0:02:32]}  Kh8 {[%clk 0:01:50]} 26. Rg4 {[%clk 0:02:18]}  Qxg3+ {[%clk 0:01:48]} 27. Kxg3 {[%clk 0:02:18]}  Re1 {[%clk 0:01:39]} 28. Rgf4 {[%clk 0:02:14]}  Kg8 {[%clk 0:01:34]} 29. R2f3 {[%clk 0:02:06]}  Rd2 {[%clk 0:01:30]} 30. Rf2 {[%clk 0:02:06]}  Ree2 {[%clk 0:01:28]} 31. Rxe2 {[%clk 0:02:04]}  Rxe2 {[%clk 0:01:28]} 32. Rf2 {[%clk 0:01:55]}  Rxe4 {[%clk 0:01:26]} 33. Rd2 {[%clk 0:01:55]}  Kf7 {[%clk 0:01:26]} 34. Rd7+ {[%clk 0:01:53]}  Re7 {[%clk 0:01:25]} 35. Rd3 {[%clk 0:01:53]}  g5 {[%clk 0:01:23]} 36. h4 {[%clk 0:01:52]}  Kg6 {[%clk 0:01:23]} 37. hxg5 {[%clk 0:01:51]}  fxg5 {[%clk 0:01:22]} 38. Rd6+ {[%clk 0:01:50]}  Kf5 {[%clk 0:01:22]} 39. Rd3 {[%clk 0:01:47]}  h5 {[%clk 0:01:20]} 40. Rf3+ {[%clk 0:01:47]}  Kg6 {[%clk 0:01:20]} 41. Rd3 {[%clk 0:01:47]}  h4+ {[%clk 0:01:14]} 42. Kf3 {[%clk 0:01:46]}  Kf5 {[%clk 0:01:13]} 43. g4+ {[%clk 0:01:43]}  hxg3 {[%clk 0:01:12]} 44. Kxg3 {[%clk 0:01:44]}  g4 {[%clk 0:01:10]} 45. a4 {[%clk 0:01:38]}  a5 {[%clk 0:01:09]} 46. b4 {[%clk 0:01:37]}  axb4 {[%clk 0:01:08]} 47. cxb4 {[%clk 0:01:38]}  Re4 {[%clk 0:01:07]} 48. Rb3 {[%clk 0:01:37]}  Ke5 {[%clk 0:00:57]} 49. a5 {[%clk 0:01:37]}  Kd5 {[%clk 0:00:56]} 50. b5 {[%clk 0:01:37]}  c5 {[%clk 0:00:51]} 51. a6 {[%clk 0:01:33]}  bxa6 {[%clk 0:00:51]} 52. bxa6 {[%clk 0:01:25]}  Ra4 {[%clk 0:00:50]} 53. a7 {[%clk 0:01:22]}  Rxa7 {[%clk 0:00:49]} 54. Kxg4 {[%clk 0:01:22]}  Re7 {[%clk 0:00:49]} 55. Rd3+ {[%clk 0:01:20]}  Kc4 {[%clk 0:00:48]} 56. Rd8 {[%clk 0:01:20]}  Kc3 {[%clk 0:00:48]} 0-1


[Site "https://www.chess.com"]